fUSD/lending_fUSD_20260106
["ID","MTS","AMOUNT","RATE_DAILY","PERIOD"]
[400517077,1767691838861,-90428.14720612,0.00018,2]
[400517078,1767691838873,-52830.2209683,0.00018,2]
[400517079,1767691838913,-3341.54631403,0.00018,2]
[400517085,1767691840473,-151.0,0.0001658,2]
[400517086,1767691840488,-814.92,0.00018,2]
[400517087,1767691840579,-312.66755575,0.00018,2]
[400517095,1767691840863,-1.7e-07,0.00018,2]
[400517119,1767691841103,848.23,0.00010666,2]
[400517120,1767691841297,848.23,0.00011227,2]
[400517121,1767691841719,848.23,0.00011788,2]
[400517122,1767691841926,848.23,0.0001235,2]
[400517123,1767691842120,848.23,0.00012911,2]
[400517124,1767691842329,848.23,0.00013472,2]
[400517125,1767691842528,265.655658,0.00014034,2]
[400517126,1767691842561,582.574342,0.00014034,2]
[400517127,1767691842749,848.23,0.00014595,2]
[400517137,1767691843789,-848.23,0.00015156,2]
[400517138,1767691843799,-848.23,0.00015718,2]
[400517139,1767691843807,-848.23,0.00016279,2]
[400517140,1767691843817,-848.23,0.0001684,2]
[400517141,1767691843825,-792.26066026,0.00017402,2]
[400517142,1767691843896,-55.96933974,0.00017402,2]
[400517143,1767691843905,-26684.56221781,0.00018,2]
[400517144,1767691844638,-848.23,0.00017963,2]
[400517146,1767691844648,-83077.68214992,0.00018,2]
[400517149,1767691844660,-2386.97270748,0.00018,2]
[400517151,1767691844674,-20137.56823649,0.00018,2]
[400517154,1767691846136,-332.818322,0.00018,2]
[400517155,1767691846395,-7415.94707886,0.00018,2]
[400517201,1767693031312,-151.0,0.00016352,2]
[400517202,1767693031321,-151.0,0.00016368,2]
[400517203,1767693031331,-166.66,0.0001643,2]
[400517204,1767693031341,-195.0,0.0001643,2]
[400517205,1767693031351,-238.47363016,0.0001643,2]
[400517206,1767693031360,-612.75307702,0.0001643,4]
[400517207,1767693031370,-1323.9,0.00016438,2]
[400517208,1767693031379,-195.0,0.00016582,2]
[400517209,1767693031388,-166.66,0.00016776,2]
[400517210,1767693031397,-840.70377031,0.00016972,2]
[400517211,1767693031442,-159.29622969,0.00016972,2]
[400517212,1767693031451,-250.0,0.00017,2]
[400517213,1767693031460,-166.66,0.00017122,2]
[400517214,1767693031469,-166.66,0.00017467,2]
[400517215,1767693031479,-200.0,0.00017523,2]
[400517216,1767693031487,-1200.0,0.00017793,2]
[400517217,1767693031500,-300.0,0.00017794,2]
[400517218,1767693031509,-295.71975404,0.00017794,2]
[400517219,1767693031550,-4.28024596,0.00017794,2]
[400517220,1767693031560,-300.0,0.00017794,2]
[400517221,1767693031570,-300.0,0.00017794,2]
[400517222,1767693031580,-812.65,0.00017795,2]
[400517224,1767693031589,-665.44501788,0.00017795,2]
[400517225,1767693031600,-776.28283243,0.00017795,2]
[400517227,1767693031612,-555.66208952,0.00017795,2]
[400517228,1767693031623,-250.0,0.00017795,2]
[400517241,1767693037384,-493.31052754,0.00017795,2]
[400517242,1767693037395,-564.0886184,0.00017795,2]
[400517243,1767693037408,-723.76091423,0.00017795,2]
[400517244,1767693037418,-166.66,0.00017813,2]
[400517245,1767693037430,-673.19653905,0.00017881,2]
[400517246,1767693037442,-1362.74,0.00017881,2]
[400517247,1767693037454,-477.01024154,0.00017881,2]
[400517248,1767693037471,-1966.54436356,0.00017881,2]
[400517249,1767693037483,-778.86843877,0.00017881,2]
[400517250,1767693037493,-166.66,0.00017892,2]
[400517251,1767693037502,-500.0,0.000179,2]
[400517252,1767693037513,-158.54938967,0.000179,2]
[400517253,1767693037522,-1636.27513039,0.000179,2]
[400517254,1767693037534,-466.77749992,0.000179,2]
[400517255,1767693037545,-1396.78893979,0.000179,2]
[400517256,1767693037603,-367.91122764,0.000179,2]
[400517257,1767693037613,-211.72850092,0.000179,2]
[400517258,1767693037622,-587.44859688,0.000179,2]
[400517259,1767693037631,-2032.40085294,0.000179,2]
[400517260,1767693037643,-1649.4567383,0.000179,2]
[400517261,1767693037652,-1350.57741827,0.000179,2]
[400517263,1767693037662,-999.96584343,0.000179,2]
[400517265,1767693037674,-739.15293101,0.000179,2]
[400517267,1767693037683,-230.23852664,0.000179,2]
[400517269,1767693037694,-885.58957147,0.000179,2]
[400517271,1767693037703,-159.20166864,0.000179,2]
[400517273,1767693037712,-492.0,0.00017932,2]
[400517275,1767693037721,-999.0,0.00017958,3]
[400517277,1767693037731,-2931.98553621,0.00017966,2]
[400517279,1767693037740,-243.51,0.00017968,2]
[400517281,1767693037750,-151.0,0.00017968,2]
[400517283,1767693037759,-151.0,0.00017968,2]
[400517285,1767693037769,-151.0,0.00017968,2]
[400517287,1767693037780,-151.0,0.00017968,2]
[400517289,1767693037789,-151.0,0.00017968,2]
[400517291,1767693037798,-151.0,0.00017968,2]
[400517293,1767693037808,-151.0,0.00017968,2]
[400517295,1767693037817,-151.0,0.00017968,2]
[400517297,1767693037826,-151.0,0.00017968,2]
[400517299,1767693037839,-151.0,0.00017968,2]
[400517301,1767693037847,-151.0,0.00017968,2]
[400517303,1767693037856,-151.0,0.00017968,2]
[400517305,1767693037866,-151.0,0.00017968,2]
[400517307,1767693037876,-151.0,0.00017968,2]
[400517309,1767693037885,-151.0,0.00017968,2]
[400517311,1767693037894,-151.0,0.00017968,2]
[400517313,1767693037904,-151.0,0.00017968,2]
[400517314,1767693037915,-151.0,0.00017968,2]
[400517316,1767693037924,-164.61840375,0.00017968,2]
[400517319,1767693037934,-500.0,0.00017968,2]
[400517320,1767693037943,-202.755,0.00017971,2]
[400517322,1767693037952,-1317.716,0.00017971,2]
[400517325,1767693037962,-321.01045465,0.00017974,2]
[400517327,1767693037971,-500.0,0.00017974,2]
[400517329,1767693037980,-500.0,0.00017974,2]
[400517331,1767693037989,-500.0,0.00017974,2]
[400517333,1767693037998,-784.04452371,0.00017974,2]
[400517335,1767693038008,-784.04452371,0.00017974,2]
[400517337,1767693038017,-500.0,0.00017974,2]
[400517339,1767693038026,-335.48347014,0.00017974,2]
[400517340,1767693038035,-784.04452371,0.00017974,2]
[400517342,1767693038045,-481.61066553,0.00017974,2]
[400517344,1767693038054,-784.04452371,0.00017974,2]
[400517346,1767693038063,-784.04452371,0.00017974,2]
[400517348,1767693038073,-784.04452371,0.00017974,2]
[400517350,1767693038083,-784.04452371,0.00017974,2]
[400517352,1767693038092,-784.04452371,0.00017974,2]
[400517354,1767693038101,-784.04452371,0.00017974,2]
[400517356,1767693038110,-784.04452371,0.00017974,2]
[400517358,1767693038120,-784.04452371,0.00017974,2]
[400517360,1767693038129,-784.04452371,0.00017974,2]
[400517362,1767693038138,-784.04452371,0.00017974,2]
[400517364,1767693038147,-784.04452371,0.00017974,2]
[400517366,1767693038156,-784.04452371,0.00017974,2]
[400517368,1767693038166,-784.04452371,0.00017974,2]
[400517370,1767693038176,-784.04452371,0.00017974,2]
[400517372,1767693038186,-784.04452371,0.00017974,2]
[400517374,1767693038195,-784.04452371,0.00017974,2]
[400517376,1767693038205,-784.04452371,0.00017974,2]
[400517378,1767693038215,-784.04452371,0.00017974,2]
[400517380,1767693038225,-784.04452371,0.00017974,2]
[400517382,1767693038235,-784.04452371,0.00017974,2]
[400517384,1767693038244,-784.04452371,0.00017974,2]
[400517386,1767693038253,-784.04452371,0.00017974,2]
[400517388,1767693038263,-784.04452371,0.00017974,2]
[400517390,1767693038272,-784.04452371,0.00017974,2]
[400517392,1767693038282,-784.04452371,0.00017974,2]
[400517394,1767693038291,-784.04452371,0.00017974,2]
[400517396,1767693038301,-366.35904184,0.00017974,2]
[400517399,1767693038313,-417.68548187,0.00017974,2]
[400517401,1767693038324,-6.12476156,0.00017974,2]
[400517403,1767693038336,-777.91976215,0.00017974,2]
[400517405,1767693038345,-784.04452371,0.00017974,2]
[400517407,1767693038355,-784.04452371,0.00017974,2]
[400517409,1767693038365,-784.04452371,0.00017974,2]
[400517411,1767693038375,-784.04452371,0.00017974,2]
[400517412,1767693038384,-784.04452371,0.00017974,2]
[400517414,1767693038394,-784.04452371,0.00017974,2]
[400517416,1767693038403,-784.04452371,0.00017974,2]
[400517418,1767693038413,-784.04452371,0.00017974,2]
[400517420,1767693038423,-784.04452371,0.00017974,2]
[400517422,1767693038432,-784.04452371,0.00017974,2]
[400517424,1767693038442,-784.04452371,0.00017974,2]
[400517426,1767693038451,-784.04452371,0.00017974,2]
[400517428,1767693038460,-784.04452371,0.00017974,2]
[400517430,1767693038469,-784.04452371,0.00017974,2]
[400517432,1767693038478,-784.04452371,0.00017974,2]
[400517434,1767693038487,-784.04452371,0.00017974,2]
[400517436,1767693038496,-784.04452371,0.00017974,2]
[400517438,1767693038506,-784.04452371,0.00017974,2]
[400517440,1767693038515,-784.04452371,0.00017974,2]
[400517442,1767693038525,-784.04452371,0.00017974,2]
[400517444,1767693038534,-784.04452371,0.00017974,2]
[400517446,1767693038543,-1000.0,0.00017975,2]
[400517447,1767693038552,-224.97345545,0.0001798,2]
[400517449,1767693038561,-43038.5728202,0.00017981,2]
[400517451,1767693038570,-5379.807997,0.00017981,2]
[400517453,1767693038579,-336.7170234,0.00017981,2]
[400517455,1767693038588,-3940.0565445,0.00017981,2]
[400517457,1767693038598,-200.0,0.00017989,2]
[400517459,1767693038607,-500.0,0.00017999,2]
[400517461,1767693038617,-504.70503354,0.00017999,2]
[400517463,1767693038626,-500.0,0.00017999,2]
[400517465,1767693038637,-500.0,0.00017999,2]
[400517467,1767693038646,-553.78898154,0.00017999,2]
[400517469,1767693038656,-511.67545241,0.00017999,2]
[400517471,1767693038665,-500.0,0.00017999,2]
[400517473,1767693038675,-500.0,0.00017999,2]
[400517475,1767693038684,-500.0,0.00017999,2]
[400517477,1767693038694,-500.0,0.00017999,2]
[400517479,1767693038703,-500.0,0.00017999,2]
[400517481,1767693038713,-500.0,0.00017999,2]
[400517483,1767693038722,-500.0,0.00017999,2]
[400517485,1767693038732,-500.0,0.00017999,2]
[400517487,1767693038741,-520.06279742,0.00017999,2]
[400517489,1767693038752,-300.0,0.00017999,2]
[400517490,1767693038761,-671.64803008,0.00017999,2]
[400517491,1767693038771,-349950.1371044,0.00018,2]
[400517492,1767693038782,-1024.37879353,0.00018,2]
[400517493,1767693038794,-1310.34018423,0.00018,2]
[400517494,1767693038806,-11126.85270579,0.00018,2]
[400517495,1767693038817,-9533.17266637,0.00018,2]
[400517496,1767693038829,-2888.17197887,0.00018,2]
[400517497,1767693038848,-1537.78543538,0.00018,2]
[400517498,1767693038859,-19016.32010675,0.00018,2]
[400517499,1767693038871,-260.25,0.00018,2]
[400517500,1767693038884,-9719.82603536,0.00018,2]
[400517501,1767693038895,-24418.91535953,0.00018,2]
[400517502,1767693038908,-2169.58896356,0.00018,2]
[400517559,1767693039414,-405.28705655,0.00018,2]
[400517561,1767693039427,-463.67418489,0.00018,2]
[400517564,1767693039438,-3336.62340853,0.00018,2]
[400517566,1767693039449,-415.89844435,0.00018,2]
[400517568,1767693039459,-2692.79606,0.00018,2]
[400517571,1767693039474,-481.57727047,0.00018,2]
[400517575,1767693039506,-57912.89630906,0.00018,2]
[400517582,1767693039561,-1690.66002,0.00018,2]
[400517584,1767693039572,-918.085566,0.00018,2]
[400517590,1767693039615,-535.85788251,0.00018,2]
[400517592,1767693039626,-1359.71344481,0.00018,2]
[400517594,1767693039638,-18009.42464933,0.00018,2]
[400517597,1767693039650,-727.40483639,0.00018,2]
[400517599,1767693039661,-19401.56307888,0.00018,2]
[400517609,1767693039747,-3022258.57080661,0.00018,2]
[400517612,1767693039758,-273.47278806,0.00018,2]
[400517614,1767693039769,-9347.2832205,0.00018,2]
[400517905,1767693043095,-4762.08472049,0.00018,2]
[400517906,1767693043166,-140.33290775,0.00018,2]
[400517907,1767693043177,-286.28539746,0.00018,2]
[400517908,1767693043209,-11708.18510276,0.00018,2]
[400517909,1767693043272,-637.41718911,0.00018,2]
[400517910,1767693043283,-1796.97144954,0.00018,2]
[400517911,1767693044100,-151.0,0.0001657,2]
[400517912,1767693044109,-46487.66881621,0.00018,2]
[400517913,1767693044123,-2191.45228986,0.00018,2]
[400517914,1767693044132,-150.0,0.00018,7]
[400517915,1767693044142,-195.0,0.00018073,2]
[400517916,1767693044152,-300.0,0.00018073,2]
[400517917,1767693044161,-600.0,0.00018073,2]
[400517918,1767693044170,-250.0,0.00018073,2]
[400517919,1767693044180,-250.0,0.00018073,2]
[400517920,1767693044190,-300.0,0.00018073,2]
[400517921,1767693044199,-195.0,0.00018073,2]
[400517922,1767693044208,-166.66,0.00018159,2]
[400517923,1767693044218,-243.51,0.00018242,2]
[400517924,1767693044227,-500.0,0.00018242,2]
[400517925,1767693044236,-166.66,0.00018482,2]
[400517926,1767693044246,-243.51,0.00018516,2]
[400517927,1767693044255,-848.23,0.00018524,2]
[400517928,1767693044264,-189.92059497,0.00018594,2]
[400517929,1767693044274,-578.0,0.00018624,2]
[400517930,1767693044283,-1000.0,0.00018974,2]
[400517931,1767693044292,-300.0,0.00018999,2]
[400517932,1767693044301,-819.45032044,0.00019,2]
[400517933,1767693044311,-78384.56289352,0.00019,2]
[400517934,1767693044320,-166.66,0.00019073,2]
[400517935,1767693044329,-848.23,0.00019086,2]
[400517936,1767693044338,-1000.0,0.00019093,2]
[400517937,1767693044347,-420.0,0.00019419,2]
[400517938,1767693044357,-300.0,0.00019419,2]
[400517939,1767693044366,-789.0,0.00019514,2]
[400517940,1767693044376,-5258.35958291,0.00019536,2]
[400517941,1767693044385,-3867.75279773,0.00019553,2]
[400517942,1767693044395,-505.0,0.000196,2]
[400517943,1767693044404,-848.23,0.00019647,2]
[400517944,1767693044413,-166.66,0.00019663,2]
[400517945,1767693044422,-1000.0,0.00019686,2]
[400517946,1767693044432,-460.61267823,0.00019799,10]
[400517947,1767693044441,-812.65,0.00020019,2]
[400517948,1767693044450,-334.59,0.00020187,2]
[400517949,1767693044460,-848.23,0.00020208,2]
[400517950,1767693044469,-166.66,0.00020254,2]
[400517951,1767693044478,-9603.2036459,0.00020258,2]
[400517952,1767693044488,-1200.3974199,0.00020296,2]
[400517953,1767693044497,-879.1454477,0.00020296,2]
[400517954,1767693044507,-1000.0,0.00020397,2]
[400517955,1767693044516,-2142.7643674,0.00020767,2]
[400517956,1767693044526,-848.23,0.0002077,2]
[400517957,1767693044535,-267.8448685,0.00020812,2]
[400517958,1767693044545,-196.1638645,0.00020812,2]
[400517959,1767693044554,-166.66,0.00020845,2]
[400517960,1767693044563,-20000.0,0.00021,2]
[400517961,1767693044573,-1000.0,0.00021109,2]
[400517962,1767693044583,-5258.35958291,0.00021191,2]
[400517963,1767693044592,-180.0,0.00021193,2]
[400517964,1767693044602,-3867.75279773,0.00021206,2]
[400517965,1767693044611,-1000.0,0.00021215,2]
[400517966,1767693044621,-848.23,0.00021331,2]
[400517967,1767693044630,-159.20166864,0.00021533,2]
[400517968,1767693044640,-7900.63,0.00021757,2]
[400517969,1767693044650,-499.99,0.00021757,2]
[400517970,1767693044660,-150.99,0.00021757,2]
[400517971,1767693044670,-1000.0,0.0002182,2]
[400517972,1767693044679,-395.72,0.00021921,2]
[400517973,1767693044689,-442.24,0.00021922,2]
[400517974,1767693044698,-505.0,0.00021923,4]
[400517975,1767693044708,-11472.88517916,0.00022,2]
[400517982,1767693045417,-7114.86527043,0.00022,2]
[400517983,1767693045688,-31483.24955041,0.00022,2]
[400517984,1767693045698,-1095.8,0.00022,7]
[400517985,1767693045707,-587.44859684,0.000221,2]
[400517986,1767693045717,-159.52,0.00022196,2]
[400517987,1767693045727,-812.65,0.00022244,2]
[400517988,1767693045736,-255.6,0.00022285,2]
[400517989,1767693045745,-200.0,0.00022406,2]
[400517990,1767693045755,-5258.35958291,0.00022846,2]
[400517991,1767693045764,-3867.75279773,0.00022859,2]
[400517992,1767693045773,-415.18098677,0.00023,120]
[400517993,1767693045997,-1000.0,0.00023336,2]
[400517994,1767693046023,-3332.62266696,0.00024,2]
[400517995,1767693046037,-1595.87788485,0.00024,2]
[400517996,1767693046055,-11738.37303533,0.00024,2]
[400517997,1767693046064,-1019.54915216,0.00024,2]
[400517998,1767693046074,-505.0,0.00024246,6]
[400517999,1767693046083,-361.39002238,0.00024266,2]
[400518000,1767693046093,-812.65,0.00024468,2]
[400518001,1767693046102,-5258.35958291,0.00024501,2]
[400518002,1767693046111,-3867.75279773,0.00024512,2]
[400518003,1767693046121,-9327.77699606,0.000246,2]
[400518004,1767693046132,-2000.0,0.000246,2]
[400518005,1767693046147,-879.4170014,0.000246,2]
[400518006,1767693046179,-333.36619434,0.000246,2]
[400518009,1767693757859,301.13,0.00013699,2]
[400518034,1767693951683,-286.0,0.00016252,2]
[400518035,1767693951707,-195.0,0.00016252,2]
[400518036,1767693951729,-301.5796,0.00016252,2]
[400518037,1767693951752,-151.0,0.00016836,2]
[400518038,1767693951775,-151.0,0.00016928,2]
[400518039,1767693951799,-151.0,0.00016928,2]
[400518040,1767693951823,-195.0,0.00016997,2]
[400518041,1767693951847,-195.0,0.00017877,2]
[400518042,1767693951871,-522.14698675,0.00017999,2]
[400518043,1767693951896,-500.0,0.00017999,2]
[400518044,1767693951920,-500.0,0.00017999,2]
[400518045,1767693951944,-500.0,0.00017999,2]
[400518046,1767693951966,-500.0,0.00017999,2]
[400518047,1767693951987,-500.0,0.00017999,2]
[400518048,1767693952008,-515.32073646,0.00017999,2]
[400518049,1767693952032,-500.0,0.00017999,2]
[400518050,1767693952054,-500.0,0.00017999,2]
[400518051,1767693952077,-500.0,0.00017999,2]
[400518052,1767693952100,-500.0,0.00017999,2]
[400518053,1767693952124,-500.0,0.00017999,2]
[400518054,1767693952156,-500.0,0.00017999,2]
[400518055,1767693952187,-500.0,0.00017999,2]
[400518056,1767693952213,-500.0,0.00017999,2]
[400518057,1767693952241,-500.0,0.00017999,2]
[400518058,1767693952271,-418.26,0.00017999,2]
[400518059,1767693952301,-171.2,0.00018,7]
[400518060,1767693952329,-418.26,0.00018273,2]
[400518061,1767693952356,-2000.0,0.000184,2]
[400518062,1767693952382,-418.26,0.00018547,2]
[400518063,1767693952410,-418.26,0.00018821,2]
[400518064,1767693952439,-418.29,0.00019095,2]
[400518065,1767693952467,-505.0,0.000196,2]
[400518066,1767693952495,-301.13,0.00020187,2]
[400518067,1767693952522,-2000.0,0.000221,2]
[400518068,1767693952548,-505.0,0.00022226,4]
[400518069,1767693952574,-301.3553876,0.00022282,2]
[400518070,1767693952602,-3527.5228676,0.00022282,2]
[400518071,1767693952630,-465.0,0.00022699,120]
[400518072,1767693952658,-279.0,0.00022699,120]
[400518073,1767693952684,-167.0,0.00022699,120]
[400518074,1767693952712,-709.09,0.00022718,2]
[400518075,1767693952741,-184.71,0.00022729,2]
[400518076,1767693952768,-151.0,0.0002276,2]
[400518077,1767693952796,-322.6107,0.0002276,2]
[400518078,1767693952821,-200.0,0.0002276,2]
[400518079,1767693952847,-5000.0,0.00022889,2]
[400518080,1767693952879,-151.0,0.00023308,2]
[400518081,1767693952907,-465.0,0.00023834,120]
[400518082,1767693952934,-279.0,0.00023834,120]
[400518083,1767693952961,-167.0,0.00023834,120]
[400518084,1767693952990,-155.46227174,0.00023856,2]
[400518085,1767693953016,-334.5472959,0.00024129,2]
[400518086,1767693953041,-2041.01029954,0.00024494,2]
[400518087,1767693953068,-162.48473308,0.000245,2]
[400518088,1767693953098,-801.53680996,0.00024599,2]
[400518089,1767693953129,-450.04525315,0.000246,120]
[400518090,1767693953159,-11249.45426668,0.000246,2]
[400518091,1767693953187,-500.0,0.000246,120]
[400518092,1767693953214,-151.0,0.000246,2]
[400518093,1767693953241,-151.0,0.000246,2]
[400518094,1767693953268,-151.0,0.000246,2]
[400518095,1767693953295,-151.0,0.000246,2]
[400518096,1767693953323,-151.0,0.000246,2]
[400518097,1767693953350,-162.55,0.00024625,2]
[400518098,1767693953377,-1000.0,0.00024658,2]
[400518099,1767693953406,-500.0,0.00024684,2]
[400518100,1767693953433,-346.86295047,0.00024684,2]
[400518101,1767693953459,-151.0,0.00024684,2]
[400518102,1767693953488,-574.12855637,0.00024684,2]
[400518103,1767693953514,-151.0,0.00024684,2]
[400518104,1767693953541,-151.0,0.00024684,2]
[400518105,1767693953567,-151.0,0.00024684,2]
[400518106,1767693953594,-151.0,0.00024684,2]
[400518107,1767693953620,-151.0,0.00024684,2]
[400518108,1767693953648,-209.40437684,0.00024684,2]
[400518109,1767693953676,-151.0,0.00024684,2]
[400518110,1767693953703,-151.0,0.00024684,2]
[400518111,1767693953730,-151.0,0.00024684,2]
[400518112,1767693953756,-250.0,0.00024684,2]
[400518113,1767693953784,-151.0,0.00024684,2]
[400518114,1767693953811,-250.0,0.00024684,2]
[400518115,1767693953840,-200.0,0.00024684,2]
[400518116,1767693953866,-151.0,0.00024684,2]
[400518117,1767693953898,-250.0,0.00024684,2]
[400518118,1767693953924,-200.0,0.00024684,2]
[400518119,1767693953951,-742.03127509,0.00024684,2]
[400518120,1767693953977,-250.0,0.00024684,2]
[400518121,1767693954003,-250.0,0.00024684,2]
[400518122,1767693954030,-250.0,0.00024684,2]
[400518123,1767693954057,-250.0,0.00024684,2]
[400518124,1767693954085,-250.0,0.00024684,2]
[400518125,1767693954115,-250.0,0.00024684,2]
[400518126,1767693954143,-250.0,0.00024684,2]
[400518127,1767693954170,-250.0,0.00024684,2]
[400518128,1767693954196,-200.0,0.00024684,2]
[400518129,1767693954223,-250.0,0.00024684,2]
[400518130,1767693954249,-250.0,0.00024684,2]
[400518131,1767693954274,-250.0,0.00024684,2]
[400518132,1767693954300,-250.0,0.00024684,2]
[400518133,1767693954326,-250.0,0.00024684,2]
[400518134,1767693954352,-250.0,0.00024684,2]
[400518135,1767693954378,-250.0,0.00024684,2]
[400518136,1767693954403,-250.0,0.00024684,2]
[400518137,1767693954428,-250.0,0.00024684,2]
[400518138,1767693954454,-250.0,0.00024684,2]
[400518139,1767693954479,-250.0,0.00024684,2]
[400518140,1767693954505,-250.0,0.00024684,2]
[400518141,1767693954531,-250.0,0.00024684,2]
[400518142,1767693954555,-250.0,0.00024684,2]
[400518143,1767693954583,-250.0,0.00024684,2]
[400518144,1767693954609,-250.0,0.00024684,2]
[400518145,1767693954636,-250.0,0.00024684,2]
[400518146,1767693954664,-250.0,0.00024684,2]
[400518147,1767693954691,-250.0,0.00024684,2]
[400518148,1767693954715,-250.0,0.00024684,2]
[400518149,1767693955057,-250.0,0.00024684,2]
[400518150,1767693955081,-250.0,0.00024684,2]
[400518151,1767693955106,-165.24,0.00024689,2]
[400518152,1767693955130,-164.62340728,0.00024696,2]
[400518153,1767693955160,-500.0,0.00024696,2]
[400518154,1767693955188,-500.0,0.00024696,2]
[400518155,1767693955214,-500.0,0.00024696,2]
[400518156,1767693955241,-500.0,0.00024696,2]
[400518157,1767693955268,-500.0,0.00024696,2]
[400518158,1767693955296,-500.0,0.00024696,2]
[400518159,1767693955325,-500.0,0.00024696,2]
[400518160,1767693955353,-500.0,0.00024696,2]
[400518161,1767693955381,-500.0,0.00024696,2]
[400518162,1767693955409,-500.0,0.00024696,2]
[400518163,1767693955437,-500.0,0.00024696,2]
[400518164,1767693955464,-500.0,0.00024696,2]
[400518165,1767693955492,-500.0,0.00024696,2]
[400518166,1767693955520,-500.0,0.00024696,2]
[400518167,1767693955549,-370.72342457,0.00024696,2]
[400518168,1767693955576,-500.0,0.00024696,2]
[400518169,1767693955603,-500.0,0.00024696,2]
[400518170,1767693955631,-500.0,0.00024696,2]
[400518171,1767693955659,-500.0,0.00024696,2]
[400518172,1767693955686,-500.0,0.00024696,2]
[400518173,1767693955713,-500.0,0.00024696,2]
[400518174,1767693955740,-500.0,0.00024696,2]
[400518175,1767693955767,-500.0,0.00024696,2]
[400518176,1767693955793,-500.0,0.00024696,2]
[400518177,1767693955820,-500.0,0.00024696,2]
[400518178,1767693955847,-500.0,0.00024696,2]
[400518179,1767693955875,-500.0,0.00024696,2]
[400518180,1767693955902,-500.0,0.00024696,2]
[400518181,1767693955930,-500.0,0.00024696,2]
[400518182,1767693955956,-500.0,0.00024696,2]
[400518183,1767693955983,-500.0,0.00024696,2]
[400518184,1767693956010,-500.0,0.00024696,2]
[400518185,1767693956036,-500.0,0.00024696,2]
[400518186,1767693956062,-500.0,0.00024696,2]
[400518187,1767693956090,-500.0,0.00024696,2]
[400518188,1767693956120,-500.0,0.00024696,2]
[400518189,1767693956149,-500.0,0.00024696,2]
[400518190,1767693956179,-500.0,0.00024696,2]
[400518191,1767693956210,-500.0,0.00024696,2]
[400518192,1767693956236,-500.0,0.00024696,2]
[400518193,1767693956263,-500.0,0.00024696,2]
[400518194,1767693956291,-500.0,0.00024696,2]
[400518195,1767693956319,-500.0,0.00024696,2]
[400518196,1767693956349,-500.0,0.00024696,2]
[400518197,1767693956378,-500.0,0.00024696,2]
[400518198,1767693956405,-500.0,0.00024696,2]
[400518199,1767693956434,-500.0,0.00024696,2]
[400518200,1767693956460,-500.0,0.00024696,2]
[400518201,1767693956487,-500.0,0.00024696,2]
[400518202,1767693956512,-500.0,0.00024696,2]
[400518203,1767693956540,-500.0,0.00024696,2]
[400518204,1767693956566,-500.0,0.00024696,2]
[400518205,1767693956595,-500.0,0.00024696,2]
[400518206,1767693956621,-500.0,0.00024696,2]
[400518207,1767693956648,-500.0,0.00024696,2]
[400518208,1767693956676,-500.0,0.00024696,2]
[400518209,1767693956702,-500.0,0.00024696,2]
[400518210,1767693956727,-500.0,0.00024696,2]
[400518211,1767693956754,-500.0,0.00024696,2]
[400518212,1767693956781,-500.0,0.00024696,2]
[400518213,1767693956807,-350.0,0.00024696,2]
[400518214,1767693956834,-500.0,0.00024696,2]
[400518215,1767693956861,-500.0,0.00024696,2]